bitfinex/quotes_ETHUSD_20250331
["timestamp","ask_amount","ask_price","bid_price","bid_amount"]
[1743451383248,10.91305,1832.7,1832.4,10.2]
[1743451383445,6.548045,1832.6,1832.4,10.2]
[1743451383638,4.58323359,1832.5,1832.4,10.2]
[1743451383837,4.58323359,1832.5,1832.4,15.65732]
[1743451384551,4.58323359,1832.5,1832.4,10.2]
[1743451384759,10.03966359,1832.7,1832.4,15.65732]
[1743451385370,4.58323359,1832.7,1832.4,15.6572]
[1743451385559,4.58323359,1832.7,1832.4,21.11437]
[1743451385759,4.58323359,1832.7,1832.4,15.65717]
[1743451385971,4.58323359,1832.7,1832.5,5.45699]
[1743451386135,10.03975359,1832.7,1832.4,15.65717]
[1743451386666,15.49633359,1832.7,1832.4,15.65717]
[1743451386867,5.45689,1832.6,1832.4,10.2]
[1743451387041,5.45702,1832.5,1832.4,10.2]
[1743451387240,5.45702,1832.5,1832.2,5.86102671]
[1743451387241,11.70911,1832.4,1832.2,10.2]
[1743451387458,10.04085359,1832.3,1832.2,10.2]
[1743451387669,5.45846,1832.1,1831.7,21.84467]
[1743451387969,5.45846,1832.1,1831.8,15.6591]
[1743451387970,4.58323359,1831.9,1831.8,15.6591]
[1743451388939,4.58323359,1831.9,1831.8,10.2]
[1743451389369,4.58323359,1831.9,1831.8,15.65911]
[1743451389672,6.25145,1832.4,1832.0,5.45835]
[1743451389975,4.58323359,1832.4,1832.1,5.51256604]
[1743451390169,4.58323359,1832.4,1832.1,15.65799]
[1743451390557,4.58323359,1832.4,1832.1,21.11605]
[1743451390940,4.58323359,1832.4,1832.1,15.65799]
[1743451391367,4.58323359,1832.4,1832.3,5.45762]
[1743451391571,4.58323359,1832.6,1832.2,0.88487114]
[1743451391763,10.03937359,1832.8,1832.5,5.45702]
[1743451391948,4.58323359,1832.6,1832.5,10.2]
[1743451393074,10.03995359,1832.6,1832.5,10.2]
[1743451393242,10.79645359,1832.6,1832.5,10.2]
[1743451393443,4.58323359,1832.6,1832.5,10.2]
[1743451394847,4.63323359,1832.9,1832.6,6.28632]
[1743451395278,4.63323359,1832.9,1832.7,21.11261]
[1743451395569,4.63323359,1832.9,1832.7,15.65629]
[1743451395873,0.05,1832.9,1832.8,5.45613]
[1743451396074,0.05,1832.9,1832.8,16.54038411]
[1743451396371,0.7565,1833.8,1833.0,0.8297]
[1743451396576,4.58323359,1833.5,1833.2,5.45473]
[1743451396879,4.58323359,1833.3,1833.2,5.45473]
[1743451397180,4.58323359,1833.3,1833.2,15.65473]
[1743451397378,4.58323359,1833.3,1833.2,10.2]
[1743451398967,10.03787359,1833.3,1833.2,10.2]
[1743451399655,4.58323359,1833.3,1833.2,10.2]
[1743451400072,5.45537,1833.1,1832.8,5.379]
[1743451400376,5.45554,1833.0,1832.8,15.579]
[1743451400688,4.58323359,1832.9,1832.8,15.579]
[1743451402569,10.03906359,1832.9,1832.8,10.2]
[1743451402769,5.45643,1832.7,1832.6,31.481]
[1743451403073,10.91423,1832.5,1832.3,10.2]
[1743451403274,10.04055359,1832.4,1832.3,10.2]
[1743451404059,5.45702,1832.5,1831.9,47.051]
[1743451404060,5.45801,1832.2,1831.9,47.051]
[1743451404377,10.5359475,1832.2,1832.0,10.2]
[1743451404683,5.45779,1832.3,1832.0,10.2]
[1743451405078,10.5352775,1832.4,1832.0,10.2]
[1743451405279,5.45777,1832.3,1832.0,10.2]
[1743451406780,10.91557,1832.3,1832.0,10.2]
[1743451406953,5.45793,1832.2,1832.0,10.2]
[1743451407156,10.5358675,1832.2,1832.0,10.2]
[1743451407380,5.45821,1832.1,1832.0,10.2]
[1743451407567,15.9940775,1832.2,1832.0,10.2]
[1743451407883,10.5358675,1832.2,1832.0,10.2]
[1743451408579,5.0779375,1832.2,1832.0,10.2]
[1743451408785,10.5352675,1832.4,1832.1,5.45812]
[1743451408958,5.0779375,1832.4,1832.1,5.45812]
[1743451409169,10.5352875,1832.4,1832.1,5.45812]
[1743451409675,10.5354575,1832.4,1832.1,5.45818]
[1743451410370,15.9929475,1832.4,1832.0,21.11681]
[1743451410565,5.45765,1832.3,1832.0,10.2]
[1743451410766,5.45765,1832.3,1832.0,15.6585]
[1743451411795,10.91544,1832.3,1832.0,15.6585]
[1743451412001,5.45765,1832.3,1832.0,10.2]
[1743451412170,5.45765,1832.3,1832.0,15.6585]
[1743451412495,10.5353275,1832.4,1832.1,5.45811]
[1743451412701,5.0779375,1832.4,1832.1,10.91622]
[1743451413494,5.0779375,1832.4,1832.1,5.45811]
[1743451414272,5.0779375,1832.4,1832.1,5.51268527]
[1743451414476,5.0779375,1832.4,1832.0,10.2]
[1743451414679,5.45771,1832.3,1832.1,10.2]
[1743451414877,10.91558,1832.3,1832.1,10.2]
[1743451415294,11.3332475,1832.2,1832.1,10.2]
[1743451415519,5.45861,1832.0,1831.7,5.45929]
[1743451415669,10.5368875,1831.9,1831.7,10.2]
[1743451416194,15.9958575,1831.9,1831.7,10.2]
[1743451416370,15.9958875,1831.9,1831.7,10.2]
[1743451416714,6.25651,1831.8,1831.4,10.9813]
[1743451416882,10.5375775,1831.7,1831.4,15.66015]
[1743451417089,11.3344875,1831.8,1831.4,21.12034]
[1743451417402,11.3344875,1831.8,1831.4,15.66015]
[1743451417589,5.45941,1831.7,1831.4,15.66015]
[1743451418397,11.3344875,1831.8,1831.4,21.12036]
[1743451418597,16.7938175,1831.8,1831.4,15.66015]
[1743451418798,5.45973,1831.6,1831.4,10.2]
[1743451419002,5.45943,1831.7,1831.4,10.2]
[1743451419165,5.4598,1831.6,1831.4,10.2]
[1743451419370,5.45943,1831.7,1831.4,10.2]
[1743451420196,5.45943,1831.7,1831.4,15.6603]
[1743451420368,5.45943,1831.7,1831.4,10.2]
[1743451420581,5.45974,1831.6,1831.4,10.2]
[1743451420893,15.9976375,1831.6,1831.4,10.2]
[1743451421100,5.46,1831.5,1831.4,10.2]
[1743451421272,5.46044,1831.4,1831.2,41.682]
[1743451421473,11.2933775,1831.4,1831.2,31.482]
[1743451421673,5.46089,1831.2,1831.1,0.05]
[1743451421993,10.5388275,1831.2,1831.1,0.05]
[1743451424002,11.2972275,1831.2,1831.1,0.05]
[1743451424194,14.2972275,1831.2,1831.1,0.05]
[1743451426498,19.6662275,1831.2,1831.1,0.05]
[1743451426673,22.17891025,1831.2,1831.1,0.05]
[1743451427401,16.80991025,1831.2,1831.1,0.05]
[1743451428478,13.80991025,1831.2,1831.1,0.05]
[1743451430903,10.5388275,1831.2,1831.1,0.05]
[1743451431689,10.05206285,1831.2,1831.1,0.05]
[1743451435617,4.59117285,1831.2,1831.1,0.05]
[1743451435783,4.59117285,1831.3,1831.1,5.51107]
[1743451435978,4.59117285,1831.3,1831.2,5.46089]
[1743451436401,4.59117285,1831.3,1831.1,6.140037]
[1743451437715,4.59117285,1831.3,1831.1,5.51107]
[1743451438595,4.59117285,1831.3,1831.1,5.51106]
[1743451439601,4.59117285,1831.3,1831.1,10.97216]
[1743451439916,4.59117285,1831.3,1831.1,5.51106]
[1743451440216,4.59117285,1831.3,1831.1,5.51105]
[1743451440517,4.59117285,1831.3,1831.1,0.05]
[1743451441317,4.59117285,1831.3,1831.1,5.51112]
[1743451443097,4.59117285,1831.3,1831.1,5.51105]
[1743451443603,5.46089,1831.2,1831.1,0.05]
[1743451444685,11.81774514,1831.3,1831.1,0.05]
[1743451444883,17.27856514,1831.3,1831.1,0.05]
[1743451445120,11.81774514,1831.3,1831.1,0.05]
[1743451445309,5.46089,1831.2,1831.1,0.05]
[1743451446290,17.27850514,1831.3,1831.1,0.05]
[1743451447002,5.46089,1831.2,1831.1,0.05]
[1743451447205,7.18875351,1831.2,1831.1,0.05]
[1743451450020,17.27847514,1831.3,1831.1,0.05]
[1743451450223,11.05694514,1831.3,1831.1,0.05]
[1743451450416,4.59117285,1831.3,1831.1,0.05]
[1743451450925,4.59117285,1831.3,1831.1,5.51109]
[1743451451222,4.59117285,1831.3,1831.1,0.05]
[1743451451725,10.05185285,1831.3,1831.1,0.05]
[1743451453228,4.59117285,1831.3,1831.1,0.05]
[1743451453592,4.59117285,1831.5,1831.3,5.4604]
[1743451453816,4.59117285,1831.7,1831.5,5.45989]
[1743451454021,4.59117285,1831.7,1831.6,0.7865]
[1743451454221,4.59117285,1831.7,1831.6,6.2462]
[1743451454700,4.59117285,1831.7,1831.6,5.4597]
[1743451454932,4.59117285,1831.7,1831.4,11.62724]
[1743451455334,4.59117285,1831.7,1831.4,12.04530385]
[1743451455497,4.59117285,1831.7,1831.4,12.04526385]
[1743451455830,4.59117285,1831.7,1831.4,17.50543385]
[1743451456028,10.05069285,1831.7,1831.4,6.167]
[1743451456203,4.59117285,1831.5,1831.4,0.797]
[1743451456403,4.59117285,1831.5,1831.3,10.2]
[1743451457236,4.59117285,1831.5,1831.3,21.1211]
[1743451457528,4.59117285,1831.5,1831.3,21.12099]
[1743451457701,4.59117285,1831.5,1831.4,5.4603]
[1743451458131,4.59117285,1831.6,1831.4,10.9205]
[1743451458501,4.59117285,1831.6,1831.5,0.7743]
[1743451459338,10.05088285,1831.6,1831.4,10.2]
[1743451459906,5.46,1831.5,1831.4,10.2]
[1743451461035,15.51075285,1831.6,1831.4,10.2]
[1743451461331,10.05088285,1831.6,1831.4,10.2]
[1743451461629,6.46508829,1831.5,1831.4,10.2]
[1743451462230,1.00508829,1831.5,1831.4,10.2]
[1743451462828,6.46508829,1831.5,1831.4,10.2]
[1743451463801,10.05088285,1831.6,1831.4,10.2]
[1743451463802,4.59117285,1831.6,1831.4,10.2]
[1743451464106,5.45801,1832.2,1831.7,0.8188]
[1743451464298,4.59117285,1832.4,1832.2,5.45781]
[1743451464502,4.59117285,1832.4,1832.3,5.45762]
[1743451464704,4.59117285,1832.6,1832.4,5.45721]
[1743451464933,4.59117285,1832.6,1832.3,5.45762]
[1743451465509,4.59117285,1832.4,1832.3,5.45762]
[1743451465833,15.99035668,1832.7,1832.3,5.45762]
[1743451466034,10.53373668,1832.7,1832.3,5.45762]
[1743451466238,15.99034668,1832.7,1832.3,5.45762]
[1743451466435,10.53373668,1832.7,1832.3,5.45762]
[1743451466653,10.53373668,1832.7,1832.4,5.45719]
[1743451466654,5.07728668,1832.7,1832.4,5.45719]
[1743451466937,10.53374668,1832.7,1832.3,15.65759]
[1743451467145,5.07728668,1832.7,1832.4,5.45714]
[1743451467310,5.07728668,1832.7,1832.4,10.91432]
[1743451467505,5.07728668,1832.7,1832.4,10.9143]
[1743451467710,5.07728668,1832.7,1832.5,0.8191]
[1743451467910,5.07728668,1832.7,1832.3,15.568]
[1743451467911,10.53373668,1832.7,1832.3,16.3871]
[1743451468131,5.45693,1832.6,1832.3,16.3871]
[1743451468739,5.07728668,1832.5,1832.3,16.3871]
[1743451469411,6.13070835,1832.5,1832.3,10.2]
[1743451469629,5.45732,1832.4,1832.3,10.2]
[1743451469843,5.45779,1832.3,1832.0,0.8251]
[1743451470008,15.99291668,1832.3,1831.9,5.45865]
[1743451470436,15.99291668,1832.3,1831.8,6.28418]
[1743451470437,10.91615,1832.2,1831.8,6.28418]
[1743451470635,5.07728668,1832.1,1831.8,16.48418]
[1743451470841,5.07728668,1832.1,1831.8,17.57249263]
[1743451471641,5.07728668,1832.1,1831.8,16.48399]
[1743451472227,5.07728668,1832.1,1831.8,11.0251]
[1743451472425,10.53562668,1832.1,1831.8,11.0251]
[1743451473640,10.53562668,1832.1,1831.8,16.4842]
[1743451473942,5.07728668,1832.1,1831.8,16.4842]
[1743451474241,0.833,1832.2,1831.9,5.45871]
[1743451474540,10.53494668,1832.3,1831.9,5.45867]
[1743451474750,5.45798,1832.2,1831.9,5.45867]
[1743451475046,5.45793,1832.2,1831.8,16.4842]
[1743451475349,5.45793,1832.2,1831.8,16.48409]
[1743451475734,5.45793,1832.2,1831.8,11.0251]
[1743451475934,5.45833,1832.1,1831.8,11.0251]
[1743451476142,10.53561668,1832.1,1831.8,11.0251]
[1743451476335,5.07728668,1832.1,1831.8,16.48419]
[1743451476645,15.99275668,1832.3,1831.9,5.45864]
[1743451476950,10.53495668,1832.3,1831.9,5.45864]
[1743451477332,10.53495668,1832.3,1831.8,11.0251]
[1743451477333,5.07728668,1832.3,1831.8,11.0251]
[1743451477534,5.90598668,1832.6,1832.2,5.45771]
[1743451477752,11.36211668,1832.8,1832.4,6.2775]
[1743451477914,8.45657,1832.7,1832.4,0.8203]
[1743451478114,15.99110668,1832.6,1832.2,6.2781]
[1743451478339,10.53411668,1832.6,1832.2,6.2781]
[1743451478653,5.45683,1832.6,1832.2,6.2781]
[1743451478833,10.53411668,1832.6,1832.2,6.2781]
[1743451479861,10.53486668,1832.4,1832.1,10.2]
[1743451480071,5.45791,1832.2,1832.1,10.2]
[1743451480241,10.53519668,1832.2,1831.9,0.8269]
[1743451480433,10.53519668,1832.2,1831.8,10.2]
[1743451480638,5.45832,1832.1,1831.8,10.2]
[1743451480954,10.53519668,1832.2,1831.8,15.659]
[1743451481123,10.53519668,1832.2,1831.8,21.11796]
[1743451481324,10.53519668,1832.2,1831.8,15.65896]
[1743451481848,10.53519668,1832.2,1831.8,15.65895]
[1743451482053,5.45822,1832.1,1831.8,15.65895]
[1743451482243,5.45822,1832.1,1831.8,10.2]
[1743451482922,10.53519668,1832.2,1831.8,15.65894]
[1743451483123,5.45821,1832.1,1831.8,15.65894]
[1743451483553,5.07728668,1832.0,1831.8,10.2]
[1743451483855,10.53595668,1832.0,1831.8,10.2]
[1743451484331,5.07728668,1832.0,1831.8,10.2]
[1743451484531,10.53579668,1832.0,1831.8,10.2]
[1743451485053,10.53579668,1832.0,1831.7,5.45932]
[1743451486865,5.458,1832.2,1831.8,5.45892]
[1743451487038,5.458,1832.2,1831.8,6.31581128]
[1743451487238,5.458,1832.2,1831.8,11.72014]
[1743451487540,5.458,1832.2,1831.8,6.26122]
[1743451487746,0.8021,1832.4,1832.1,5.458]
[1743451487945,5.07728668,1832.5,1832.1,0.8023]
[1743451488145,5.07728668,1832.3,1832.0,10.2]
[1743451488337,5.45797,1832.2,1832.0,10.2]
[1743451488536,5.07728668,1832.1,1832.0,10.2]
[1743451488848,10.53549668,1832.1,1832.0,10.2]
[1743451489049,12.21585335,1832.1,1832.0,10.2]
[1743451489253,5.07728668,1832.1,1832.0,10.2]
[1743451489869,10.04427016,1832.1,1832.0,10.2]
[1743451490842,10.04427016,1832.1,1831.8,5.45902]
[1743451491474,10.04427016,1832.1,1831.8,10.91798]
[1743451491773,4.58606016,1831.9,1831.7,16.48955]
[1743451493363,5.4592,1831.8,1831.5,11.0031]
[1743451493562,10.04576016,1831.6,1831.5,10.2]
[1743451493966,4.58606016,1831.6,1831.5,10.2]
[1743451496670,4.58606016,1831.6,1831.4,31.5]
[1743451498955,10.04554016,1831.7,1831.4,31.5]
[1743451499151,10.04554016,1831.7,1831.4,36.96029]
[1743451499462,10.04554016,1831.7,1831.4,31.5]
[1743451499841,15.50514016,1831.7,1831.4,31.5]
[1743451500278,5.45974,1831.6,1831.4,31.5]
[1743451500882,10.04606016,1831.5,1831.4,31.5]
[1743451501190,10.04606016,1831.5,1831.1,6.59513533]
[1743451501191,10.92162,1831.3,1831.1,10.25]
[1743451501348,5.46089,1831.2,1831.1,0.05]
[1743451501546,4.58606016,1831.3,1831.1,0.05]
[1743451502284,10.04672016,1831.3,1831.1,0.05]
[1743451502480,11.67597218,1831.3,1831.1,0.05]
[1743451502805,5.46089,1831.2,1831.1,0.05]
[1743451503654,8.46089,1831.2,1831.1,0.05]
[1743451505208,13.81695016,1831.2,1831.1,0.05]
[1743451509832,19.18495016,1831.2,1831.1,0.05]
[1743451510235,22.27104239,1831.2,1831.1,0.05]
[1743451510443,11.54698223,1831.2,1831.1,0.05]
[1743451510684,4.58606016,1831.3,1831.1,0.05]
[1743451511153,10.04668016,1831.3,1831.1,0.05]
[1743451511844,4.58606016,1831.3,1831.1,0.05]
[1743451512062,4.58606016,1831.3,1831.2,0.8284]
[1743451512375,4.58606016,1831.3,1831.2,6.28929]
[1743451512845,4.58606016,1831.3,1831.2,0.8284]
[1743451513432,4.58606016,1831.3,1831.2,6.28929]
[1743451514666,4.58606016,1831.3,1831.2,0.8284]
[1743451514866,4.58606016,1831.3,1831.1,5.51098]
[1743451515866,4.58606016,1831.3,1831.2,5.46089]
[1743451516560,4.58606016,1831.3,1831.1,5.51098]
[1743451516866,4.58606016,1831.3,1831.1,10.97209]
[1743451517261,4.58606016,1831.3,1831.1,21.17207]
[1743451517464,4.58606016,1831.3,1831.2,5.46089]
[1743451518333,4.58606016,1831.3,1831.1,21.17207]
[1743451518533,4.58606016,1831.3,1831.1,15.71098]
[1743451519363,4.58606016,1831.3,1831.1,10.25]
[1743451519564,4.58606016,1831.3,1831.1,21.17224]
[1743451519762,4.58606016,1831.3,1831.1,15.7111]
[1743451522263,6.13675018,1831.3,1831.1,10.25]
[1743451522965,6.24709,1831.5,1831.1,15.71098]
[1743451523266,4.58606016,1831.3,1831.2,5.4608]
[1743451523565,4.58606016,1831.3,1831.1,10.97206]
[1743451523774,4.58606016,1831.3,1831.1,5.51098]
[1743451524263,4.58606016,1831.3,1831.1,10.97207]
[1743451524490,4.58606016,1831.3,1831.1,5.51098]
[1743451524847,4.58606016,1831.3,1831.1,0.05]
[1743451525855,10.04683016,1831.3,1831.1,0.05]
[1743451526060,11.59753518,1831.3,1831.1,0.05]
[1743451526366,5.46089,1831.2,1831.1,0.05]
[1743451526569,11.59749518,1831.3,1831.1,0.05]
[1743451527170,17.05828518,1831.3,1831.1,0.05]
[1743451527661,7.16671852,1831.2,1831.1,0.05]
[1743451529074,7.98991852,1831.2,1831.1,0.05]
[1743451529271,15.57597868,1831.2,1831.1,0.05]
[1743451531885,15.57597868,1831.2,1831.1,0.38655826]
[1743451532085,15.57597868,1831.2,1831.1,0.05]
[1743451532552,15.57597868,1831.2,1831.1,0.38655826]
[1743451534982,15.57597868,1831.2,1830.4,12.67931025]
[1743451534983,5.46284,1830.6,1830.4,10.9677]
[1743451535284,4.58606016,1830.5,1830.4,0.7677]
[1743451535875,10.04916016,1830.5,1830.3,10.2]
[1743451536071,6.13726118,1830.5,1830.2,11.69242]
[1743451536264,4.58606016,1830.5,1830.2,6.22858]
[1743451536856,4.58606016,1830.5,1830.3,5.46354]
[1743451537053,4.58606016,1830.5,1830.3,5.46349]
[1743451537665,4.58606016,1830.5,1830.2,7.34887887]
[1743451537866,4.58606016,1830.5,1830.2,12.81263887]
[1743451539056,4.58606016,1830.5,1830.2,7.34877887]
[1743451539257,11.05392518,1830.5,1830.2,7.34877887]
[1743451539593,5.59093518,1830.5,1830.2,7.34877887]
[1743451539778,4.58606016,1830.5,1830.2,12.81251887]
[1743451540181,4.58606016,1830.5,1830.2,7.34875887]
[1743451541090,10.04906016,1830.5,1830.2,7.34875887]
[1743451541599,4.58606016,1830.5,1830.2,12.81254887]
[1743451541777,4.58606016,1830.5,1830.2,6.22854]
[1743451541973,10.04923016,1830.5,1830.2,0.7648]
[1743451542491,10.04919016,1830.5,1830.2,0.7648]
[1743451542801,10.04919016,1830.5,1830.2,6.22865]
[1743451543408,4.58606016,1830.5,1830.3,5.46349]
[1743451543909,4.58606016,1830.5,1830.2,6.22867]
[1743451544107,4.58606016,1830.5,1830.2,11.69254]
[1743451544302,4.58606016,1830.5,1830.2,6.22867]
[1743451544591,4.58606016,1830.5,1830.2,6.22858]
[1743451544769,4.58606016,1830.5,1830.3,5.46347]
[1743451544968,4.58606016,1830.5,1830.2,6.22857]
[1743451544969,4.58606016,1830.5,1830.2,11.69234]
[1743451545159,4.58606016,1830.5,1830.2,11.69235]
[1743451545779,4.58606016,1830.5,1830.2,6.22857]
[1743451545984,4.58606016,1830.5,1830.2,6.22854]
[1743451546185,4.58606016,1830.5,1830.3,5.46348]
[1743451546582,4.58606016,1830.8,1830.6,5.46259]
[1743451546968,4.58606016,1830.8,1830.6,10.92514]
[1743451547302,4.58606016,1831.0,1830.7,6.27399]
[1743451547818,10.04757016,1831.0,1830.7,0.8116]
[1743451548394,10.04757016,1831.0,1830.7,6.27398]
[1743451548777,4.58606016,1831.0,1830.7,6.27398]
[1743451549599,10.04760016,1831.0,1830.7,6.27398]
[1743451550899,10.04760016,1831.0,1830.7,0.8116]
[1743451551210,17.06013418,1831.0,1830.7,0.8116]
[1743451551384,5.46192,1830.9,1830.6,10.2]
[1743451551712,4.58606016,1830.8,1830.6,10.2]
[1743451552483,4.58606016,1830.8,1830.6,5.46267]
[1743451552882,4.58606016,1830.8,1830.5,12.8291792]
[1743451553470,4.58606016,1830.8,1830.5,7.3663292]
[1743451553710,4.58606016,1830.8,1830.5,12.8291692]
[1743451554002,10.04817016,1830.8,1830.5,6.25644]
[1743451554170,11.59917918,1830.8,1830.5,6.25644]
[1743451554370,6.13706918,1830.8,1830.5,6.25644]
[1743451554804,6.13706918,1830.8,1830.5,11.71934]
[1743451555008,6.13706918,1830.8,1830.5,6.25644]
[1743451555175,4.58606016,1830.8,1830.5,6.25644]
[1743451555883,5.46218,1830.8,1830.5,6.25644]
[1743451556068,4.58606016,1830.7,1830.5,6.25644]
[1743451557125,4.58606016,1830.7,1830.6,5.46268]
[1743451557321,4.58606016,1830.9,1830.7,5.4622]
[1743451557471,5.04466618,1830.9,1830.7,5.4622]
[1743451557875,5.04466618,1830.9,1830.6,5.46264]
[1743451558185,5.46211,1830.8,1830.5,6.25653]
[1743451558379,5.46211,1830.8,1830.5,6.25647]
[1743451558380,4.58606016,1830.7,1830.5,6.25647]
[1743451558581,4.58606016,1830.7,1830.5,11.71935]
[1743451559210,4.58606016,1830.7,1830.6,5.46268]
[1743451559887,4.58606016,1830.7,1830.5,6.25647]
[1743451560207,4.58606016,1830.7,1830.5,6.25645]
[1743451560408,4.58606016,1830.7,1830.6,5.46268]
[1743451560779,4.58606016,1830.7,1830.5,11.71932]
[1743451561304,4.58606016,1830.7,1830.5,6.25645]
[1743451561608,4.58606016,1830.7,1830.6,5.46268]
[1743451561981,4.58606016,1830.7,1830.5,6.25645]
[1743451563716,4.58606016,1830.7,1830.5,11.71931]
[1743451563922,4.58606016,1830.7,1830.6,5.46268]
[1743451565520,5.04466618,1830.9,1830.6,5.46268]
[1743451565822,0.50446662,1830.8,1830.6,5.46256]
[1743451565989,5.04466618,1830.9,1830.6,5.46256]
[1743451566186,5.04466618,1830.9,1830.5,16.45653]
[1743451566187,5.04466618,1830.9,1830.7,5.46226]
[1743451566414,5.04466618,1830.9,1830.6,5.46265]
[1743451566718,10.50647618,1830.9,1830.6,5.46265]
[1743451567517,15.96850618,1830.9,1830.5,16.45651]
[1743451567721,1.59685062,1830.8,1830.5,16.45651]
[1743451568123,4.58606016,1830.7,1830.5,10.2]
[1743451569319,5.46328,1830.4,1830.1,16.4811]
[1743451569620,6.23608,1830.2,1830.1,10.25]
[1743451569834,1.85441402,1830.2,1830.1,10.25]
[1743451571824,0.7722,1830.2,1830.1,10.25]
[1743451572987,0.7722,1830.2,1830.1,0.05]
[1743451573187,4.58606016,1830.3,1830.1,6.30308]
[1743451574123,4.58606016,1830.3,1830.1,0.839]
[1743451574305,5.04466618,1830.3,1830.1,0.839]
[1743451574823,5.04466618,1830.3,1830.1,0.05]
[1743451575127,10.50825618,1830.3,1830.1,0.05]
[1743451575322,15.97203618,1830.3,1830.1,0.05]
[1743451575629,11.27995618,1830.3,1830.1,0.05]
[1743451575803,1.12799562,1830.2,1830.1,0.05]
[1743451577424,0.45860602,1830.3,1830.1,6.30088]
[1743451577587,4.58606016,1830.4,1830.2,5.46374]
[1743451577792,4.58606016,1830.4,1830.2,10.92748]
[1743451578690,4.58606016,1830.4,1830.3,5.46358]
[1743451578999,4.58606016,1830.6,1830.4,5.46325]
[1743451579543,0.7717,1831.0,1830.4,0.7867]
[1743451579695,0.7717,1831.0,1830.6,5.46251]
[1743451579696,4.58606016,1830.9,1830.6,5.46251]
[1743451580423,4.58606016,1830.9,1830.7,5.46233]
[1743451581621,4.58606016,1830.9,1830.7,5.46222]
[1743451583425,4.58606016,1830.9,1830.6,5.46267]
[1743451583606,0.45860602,1830.8,1830.6,5.46267]
[1743451583801,4.58606016,1830.7,1830.5,5.46295]
[1743451584006,4.58606016,1830.7,1830.4,21.91308]
[1743451585131,4.58606016,1830.7,1830.5,5.46298]
[1743451585699,4.58606016,1830.7,1830.5,5.46283]
[1743451585899,4.58606016,1830.7,1830.6,5.46268]
[1743451586321,4.58606016,1830.7,1830.5,5.46283]
[1743451586726,4.58606016,1830.7,1830.5,5.46282]
[1743451587734,4.58606016,1830.7,1830.4,21.91311]
[1743451588040,4.58606016,1830.7,1830.4,16.44984]
[1743451588198,6.42013678,1830.7,1830.4,15.66314]
[1743451588531,6.42013678,1830.7,1830.4,21.12632]
[1743451588701,6.42013678,1830.7,1830.5,5.46297]
[1743451588907,0.45860602,1830.8,1830.6,5.46268]
[1743451589108,4.58606016,1830.8,1830.6,10.92536]
[1743451589627,4.58606016,1830.8,1830.6,10.92526]
[1743451591646,4.58606016,1830.8,1830.6,5.46258]
[1743451591830,4.58606016,1830.8,1830.5,21.89182]
[1743451592012,4.58606016,1830.6,1830.5,10.2]
[1743451592217,4.58606016,1830.6,1830.4,5.46313]
[1743451592434,4.58606016,1830.6,1830.5,5.46298]
[1743451592637,4.58606016,1830.8,1830.6,10.92509]
[1743451592942,4.58606016,1830.8,1830.6,5.46253]
[1743451593750,0.8078,1831.1,1830.5,5.46298]
[1743451593967,6.02075416,1831.1,1830.8,5.46194]
[1743451594619,4.58606016,1830.9,1830.8,5.46194]
[1743451595153,4.58606016,1830.9,1830.8,5.46209]
[1743451595712,4.58606016,1830.9,1830.8,5.72202314]
[1743451598947,4.58606016,1830.9,1830.8,0.25993314]
[1743451599444,5.04466618,1830.9,1830.8,0.25993314]
[1743451600440,4.58606016,1830.9,1830.8,0.25993314]
[1743451603353,10.04785016,1830.9,1830.8,0.25993314]
[1743451603551,10.04785016,1830.9,1830.6,10.2]
[1743451603854,4.58606016,1830.7,1830.6,10.2]
[1743451604050,4.58606016,1830.7,1830.5,5.46297]
[1743451604747,4.58606016,1830.7,1830.5,5.46287]
[1743451605253,5.12372618,1830.7,1830.3,1.09580346]
[1743451605423,10.58626618,1830.7,1830.3,5.46348]
[1743451605789,16.04883618,1830.7,1830.3,5.46348]
[1743451605970,4.58606016,1830.5,1830.2,15.66382]
[1743451606123,6.37994518,1830.5,1830.2,5.46375]
[1743451606324,6.37994518,1830.5,1830.1,32.3498]
[1743451606325,11.84302518,1830.5,1830.1,43.27792]
[1743451606636,4.58606016,1830.3,1830.1,37.02605]
[1743451607069,4.58606016,1830.3,1830.2,0.25600635]
[1743451607437,5.37506016,1830.5,1830.2,5.71973635]
[1743451609072,4.58606016,1830.3,1830.2,0.25600635]
[1743451609260,5.46358,1830.3,1830.2,0.25600635]
[1743451609673,6.25708,1830.3,1830.2,0.25600635]
[1743451611449,6.29148,1830.2,1830.1,0.05]
[1743451611688,10.87754016,1830.2,1830.1,0.30657053]
[1743451611859,12.51165218,1830.2,1830.1,0.30657053]
[1743451613777,15.51165218,1830.2,1830.1,0.30657053]
[1743451614148,16.06165218,1830.2,1830.1,0.30657053]
[1743451614773,16.06165218,1830.2,1830.1,5.3e-07]
[1743451614966,16.06165218,1830.2,1830.1,8.45e-06]
[1743451615174,10.93194,1829.6,1829.2,0.7642]
[1743451615345,4.58606016,1829.5,1829.2,6.231]
[1743451615559,4.58606016,1829.5,1829.2,11.69777]
[1743451615757,4.58606016,1829.5,1829.2,6.23097]
[1743451616158,9.21548,1830.0,1829.3,5.46636]
[1743451616358,4.58606016,1829.6,1829.3,15.66636]
[1743451617489,4.58606016,1829.6,1829.4,5.46625]
[1743451617687,4.58606016,1829.6,1829.3,15.66636]
[1743451618967,4.58606016,1829.6,1829.4,0.22163038]
[1743451620590,11.60350818,1829.6,1829.4,0.22163038]
[1743451620888,5.46597,1829.5,1829.4,0.22163038]
[1743451621094,11.60350818,1829.6,1829.4,0.22163038]
[1743451622594,17.06939818,1829.6,1829.4,0.22163038]
[1743451622984,11.60350818,1829.6,1829.4,0.22163038]
[1743451623380,5.46597,1829.5,1829.4,0.22163038]
[1743451623580,7.17291782,1829.5,1829.4,0.22163038]
[1743451624264,1.70694782,1829.5,1829.4,0.22163038]
[1743451624781,7.17291782,1829.5,1829.4,0.22163038]
[1743451625398,5.46633,1829.4,1829.1,0.8987785]